{"text_format":"1","workbook":"xlsx","n_sheets":1,"sheets":["応募フォーム"],"not_rendered":{"charts":0,"images":1,"macros":1,"external_links":0,"defined_names":1,"comments":1,"pivot_tables":0},"unopened":[],"bounds":{"document_bytes":16777216,"sheet_cells":100000,"rows_first":2000,"rows_last":500,"rows_between":2000,"halvings":0,"cell_chars":16384,"cell_head_chars":4096},"cells_cut":0,"cells_raw":0,"read":"whole","date_system":"1900"}

{"sheet":"応募フォーム","index":0,"n_rows":129,"n_cols":62,"rows_kept":129,"cut":false,"hidden":false,"merged":[[25,0,25,18],[14,0,14,18],[15,0,15,18],[25,19,25,20],[5,41,5,42],[8,19,9,20],[6,0,7,18],[8,0,9,18],[10,0,10,18],[5,22,5,40],[5,19,5,20],[10,19,10,20],[13,0,13,42],[8,22,8,40],[6,19,7,20],[23,19,23,20],[24,19,24,20],[23,41,23,42],[23,0,23,18],[24,0,24,18],[23,22,23,40],[6,41,6,42],[7,41,7,42],[8,41,8,42],[19,19,19,20],[20,19,20,20],[19,41,19,42],[6,22,6,40],[7,22,7,40],[20,0,20,18],[19,22,19,40],[24,22,24,40],[24,41,24,42],[1,0,1,42],[3,0,3,42],[4,0,4,42],[31,12,31,22],[18,0,18,42],[38,27,38,28],[39,27,39,28],[16,0,16,18],[16,19,16,20],[14,19,14,20],[15,19,15,20],[11,0,11,18],[11,19,11,20],[9,22,10,40],[9,41,10,42],[14,22,14,40],[15,22,16,40],[14,41,14,42],[15,41,16,42],[5,0,5,18],[33,17,33,20],[33,4,33,8],[33,10,33,13],[2,0,2,42],[40,27,40,28],[27,0,27,42],[28,0,31,0],[28,1,31,3],[28,4,28,8],[28,9,28,42],[29,4,29,8],[29,10,29,13],[29,14,29,42],[36,1,36,8],[36,9,36,42],[35,9,35,42],[38,15,38,17],[39,15,39,17],[33,21,33,42],[30,4,30,8],[30,9,30,42],[31,4,31,8],[31,9,31,11],[34,22,34,26],[34,27,34,42],[47,30,47,31],[47,33,47,42],[48,30,48,31],[42,27,42,28],[43,27,43,28],[37,27,37,29],[45,27,45,28],[46,1,46,8],[46,27,46,28],[45,10,45,12],[45,13,45,14],[40,15,40,17],[41,15,41,17],[42,15,42,17],[40,18,40,26],[41,18,41,26],[42,18,42,26],[39,1,39,8],[40,1,40,8],[41,1,41,8],[42,1,42,8],[43,1,43,8],[44,1,44,8],[45,1,45,8],[43,18,43,26],[44,18,44,26],[45,18,45,26],[43,15,43,17],[48,10,48,12],[48,13,48,14],[47,27,47,28],[46,10,46,12],[46,13,46,14],[47,10,47,12],[47,13,47,14],[46,15,46,17],[47,15,47,17],[48,15,48,17],[46,18,46,26],[47,18,47,26],[48,18,48,26],[43,13,43,14],[44,10,44,12],[44,13,44,14],[50,10,50,12],[50,13,50,14],[49,1,49,8],[49,27,49,28],[49,10,49,12],[49,13,49,14],[49,15,49,17],[50,15,50,17],[49,18,49,26],[50,18,50,26],[50,1,50,8],[52,27,52,28],[52,10,52,12],[52,13,52,14],[51,1,51,8],[51,27,51,28],[51,10,51,12],[51,13,51,14],[51,15,51,17],[52,15,52,17],[51,18,51,26],[52,18,52,26],[52,1,52,8],[56,18,56,26],[54,10,54,12],[54,13,54,14],[53,1,53,8],[53,27,53,28],[53,10,53,12],[53,13,53,14],[53,15,53,17],[54,15,54,17],[53,18,53,26],[54,18,54,26],[54,1,54,8],[54,27,54,28],[56,27,56,28],[56,10,56,12],[56,13,56,14],[55,1,55,8],[55,27,55,28],[55,10,55,12],[55,13,55,14],[55,15,55,17],[56,15,56,17],[55,18,55,26],[58,27,58,28],[58,10,58,12],[58,13,58,14],[57,1,57,8],[57,27,57,28],[57,10,57,12],[57,13,57,14],[57,15,57,17],[58,15,58,17],[57,18,57,26],[58,18,58,26],[51,30,51,31],[51,33,51,42],[52,30,52,31],[52,33,52,42],[37,9,37,26],[38,18,38,26],[39,18,39,26],[37,0,58,0],[38,10,38,12],[38,13,38,14],[39,10,39,12],[39,13,39,14],[40,10,40,12],[40,13,40,14],[41,10,41,12],[41,13,41,14],[42,10,42,12],[42,13,42,14],[58,1,58,8],[56,1,56,8],[47,1,47,8],[46,30,46,31],[46,33,46,42],[42,33,42,42],[58,30,58,31],[58,33,58,42],[53,30,53,31],[53,33,53,42],[54,30,54,31],[54,33,54,42],[55,30,55,31],[55,33,55,42],[56,30,56,31],[56,33,56,42],[57,30,57,31],[57,33,57,42],[50,30,50,31],[50,33,50,42],[50,27,50,28],[48,27,48,28],[22,0,22,42],[19,0,19,18],[41,27,41,28],[44,27,44,28],[31,23,31,26],[31,27,31,42],[32,4,32,8],[32,9,32,42],[33,14,33,16],[34,4,34,8],[34,9,34,11],[34,12,34,13],[34,15,34,21],[32,0,35,0],[35,4,35,8],[41,30,41,31],[41,33,41,42],[42,30,42,31],[48,1,48,8],[43,10,43,12],[22,51,23,52],[48,33,48,42],[49,30,49,31],[49,33,49,42],[32,1,35,3],[43,30,43,31],[43,33,43,42],[44,30,44,31],[44,33,44,42],[45,30,45,31],[45,33,45,42],[38,30,38,31],[37,30,37,32],[37,33,37,42],[38,33,38,42],[39,30,39,31],[39,33,39,42],[40,30,40,31],[40,33,40,42],[37,1,37,8],[38,1,38,8],[26,0,26,42],[44,15,44,17],[45,15,45,17]]}
[]
["宿泊療養施設　応募フォーム"]
["＜応募受付期間：令和2年6月12日(金)～23日(火)＞"]
["１　【必須項目】【あれば望ましい項目】【その他確認項目】【運営上の留意点】の各項目について、回答してください。"]
["【必須項目】"]
["・都内に所在地を有すること。",null,null,null,null,null,null,null,null,null,null,null,null,null,null,null,null,null,null,"（選択）",null,null,"・事務局を運営する（10人程度で会議ができる）会議室等があること。",null,null,null,null,null,null,null,null,null,null,null,null,null,null,null,null,null,null,"（選択）"]
["・区部においては１棟150室以上の物件、多摩部においては１棟100室以上\n　の物件で、１棟貸しができること。（複数棟も可）",null,null,null,null,null,null,null,null,null,null,null,null,null,null,null,null,null,null,"（選択）",null,null,"・館内にエレベーターが２基以上あること。",null,null,null,null,null,null,null,null,null,null,null,null,null,null,null,null,null,null,"（選択）"]
[null,null,null,null,null,null,null,null,null,null,null,null,null,null,null,null,null,null,null,null,null,null,"・館内放送設備があること。",null,null,null,null,null,null,null,null,null,null,null,null,null,null,null,null,null,null,"（選択）"]
["・各居室内には、バス、トイレ、手洗設備、冷暖房設備、内線電話、\n　テレビ、冷蔵庫が設置されていること。",null,null,null,null,null,null,null,null,null,null,null,null,null,null,null,null,null,null,"（選択）",null,null,"・各居室内においてアメニティ、ドライヤー、ポットの提供が可能であること。",null,null,null,null,null,null,null,null,null,null,null,null,null,null,null,null,null,null,"（選択）"]
[null,null,null,null,null,null,null,null,null,null,null,null,null,null,null,null,null,null,null,null,null,null,"・ホテル従業員が軽症者等の居住ゾーンに立ち入らない業務に参加可能で\n　あること。（例：食事の発注、軽症者等の入退所事務、ホテル事務室との連絡調整等）",null,null,null,null,null,null,null,null,null,null,null,null,null,null,null,null,null,null,"（選択）"]
["・Wi-Fi等の無線によるインターネット環境が整備されていること。",null,null,null,null,null,null,null,null,null,null,null,null,null,null,null,null,null,null,"（選択）"]
["・正面入口の他に、ホテル従業員専用の入口（通用口）があること。",null,null,null,null,null,null,null,null,null,null,null,null,null,null,null,null,null,null,"（選択）"]
[]
["【あれば望ましい項目】※この項目については、×の項目があっても応募は可能です。"]
["・ロビーに防犯カメラがあること。",null,null,null,null,null,null,null,null,null,null,null,null,null,null,null,null,null,null,"（選択）",null,null,"・消毒後の客室清掃、ベッドメイクの対応が可能であること。",null,null,null,null,null,null,null,null,null,null,null,null,null,null,null,null,null,null,"（選択）"]
["・机、椅子その他備品を無償で貸し出しできること。",null,null,null,null,null,null,null,null,null,null,null,null,null,null,null,null,null,null,"（選択）",null,null,"・ホテル従業員が軽症者等の居住ゾーンに立ち入る業務に参加可能\n　であること。（例：防護服を着た上での食事の配布、ゴミの回収等）",null,null,null,null,null,null,null,null,null,null,null,null,null,null,null,null,null,null,"（選択）"]
["・事務局で出る一般ゴミの処分について対応可能であること。",null,null,null,null,null,null,null,null,null,null,null,null,null,null,null,null,null,null,"（選択）"]
[]
["【その他確認項目】※この項目については、状況等を把握するためのものです。選考には関係ありません。"]
["・敷地内のテナントの有無",null,null,null,null,null,null,null,null,null,null,null,null,null,null,null,null,null,null,"（選択）",null,null,"・消毒業者の手配の可否",null,null,null,null,null,null,null,null,null,null,null,null,null,null,null,null,null,null,"（選択）"]
["・敷地内の月極駐車場の有無",null,null,null,null,null,null,null,null,null,null,null,null,null,null,null,null,null,null,"（選択）"]
[]
["【運営上の留意点】※以下の点に御同意いただける方は、チェックしてください。"]
["・建物維持管理についての対応",null,null,null,null,null,null,null,null,null,null,null,null,null,null,null,null,null,null,null,null,null,"・覚書締結から開設要請までの補償について"]
["・事前工事及び原状回復工事についての対応",null,null,null,null,null,null,null,null,null,null,null,null,null,null,null,null,null,null,null,null,null,"・宿泊者の他施設への移転についての対応"]
["・近隣住民等への説明についての対応"]
[]
["２　①～③について必要事項を記入してください。（同一事業者が複数の宿泊施設を運営している場合は、応募対象とする宿泊施設を④に記入してください。）"]
["①","事業者\n情　報",null,null,"事業者名\n（例：株式会社〇〇グループ）"]
[null,null,null,null,"所 在 地\n（結果通知の送付先）",null,null,null,null,"〒"]
[null,null,null,null,"担当者名"]
[null,null,null,null,"連 絡 先",null,null,null,null,"電話番号",null,null,null,null,null,null,null,null,null,null,null,null,null,"メールアドレス"]
["②","宿泊施設\n情　　報",null,null,"施 設 名\n（例：新宿〇〇ホテル）"]
[null,null,null,null,"所 在 地",null,null,null,null,"〒",null,null,null,null,"東京都",null,null,"（区市町村選択）",null,null,null,null,null,null,null,null,null,null,null,null,null,null,null,null,null,null,null,null,null,null,null,null,null,null,{"$f":"IF(OR(R34=$AZ$67,R34=$AZ$68,R34=$AZ$69,R34=$AZ$70,R34=$AZ$71,R34=$AZ$72,R34=$AZ$73,R34=$AZ$74,R34=$AZ$75,R34=$AZ$76,R34=$AZ$77,R34=$AZ$78,R34=$AZ$79,R34=$AZ$80,R34=$AZ$81,R34=$AZ$82,R34=$AZ$83,R34=$AZ$84,R34=$AZ$85,R34=$AZ$86,R34=$AZ$87,R34=$AZ$88,R34=$AZ$89,),\"区部\",((IF((OR(R34=$AZ$90,R34=$AZ$91,R34=$AZ$92,R34=$AZ$93,R34=$AZ$94,R34=$AZ$95,R34=$AZ$96,R34=$AZ$97,R34=$AZ$98,R34=$AZ$99,R34=$AZ$100,R34=$AZ$101,R34=$AZ$102,R34=$AZ$103,R34=$AZ$104,R34=$AZ$105,R34=$AZ$106,R34=$AZ$107,R34=$AZ$108,R34=$AZ$109,R34=$AZ$110,R34=$AZ$111,R34=$AZ$112,R34=$AZ$113,R34=$AZ$114,R34=$AZ$115,R34=$AZ$116,R34=$AZ$117,R34=$AZ$118,R34=$AZ$119,R34=$AZ$120)),\"多摩部\",\"島しょ部\"))))","v":"島しょ部"}]
[null,null,null,null,"棟数と居室数",null,null,null,null,"棟　数",null,null,null,null,"棟","居室数\n（複数棟からなるホテル等は合計数）",null,null,null,null,null,null,null,null,null,null,null,"室"]
[null,null,null,null,"宿泊施設\nWebサイトURL"]
["③","自　由　意　見"]
["④","施設名",null,null,null,null,null,null,null,"所在地",null,null,null,null,null,null,null,null,null,null,null,null,null,null,null,null,null,"棟数",null,null,"居室数",null,null,"WebサイトURL"]
[null,null,null,null,null,null,null,null,null,"〒",null,null,null,"東京都",null,"（区市町村選択）",null,null,null,null,null,null,null,null,null,null,null,null,null,"棟",null,null,"室",null,null,null,null,null,null,null,null,null,null,null,{"$f":"IF(OR(P39=$AZ$67,P39=$AZ$68,P39=$AZ$69,P39=$AZ$70,P39=$AZ$71,P39=$AZ$72,P39=$AZ$73,P39=$AZ$74,P39=$AZ$75,P39=$AZ$76,P39=$AZ$77,P39=$AZ$78,P39=$AZ$79,P39=$AZ$80,P39=$AZ$81,P39=$AZ$82,P39=$AZ$83,P39=$AZ$84,P39=$AZ$85,P39=$AZ$86,P39=$AZ$87,P39=$AZ$88,P39=$AZ$89,),\"区部\",((IF((OR(P39=$AZ$90,P39=$AZ$91,P39=$AZ$92,P39=$AZ$93,P39=$AZ$94,P39=$AZ$95,P39=$AZ$96,P39=$AZ$97,P39=$AZ$98,P39=$AZ$99,P39=$AZ$100,P39=$AZ$101,P39=$AZ$102,P39=$AZ$103,P39=$AZ$104,P39=$AZ$105,P39=$AZ$106,P39=$AZ$107,P39=$AZ$108,P39=$AZ$109,P39=$AZ$110,P39=$AZ$111,P39=$AZ$112,P39=$AZ$113,P39=$AZ$114,P39=$AZ$115,P39=$AZ$116,P39=$AZ$117,P39=$AZ$118,P39=$AZ$119,P39=$AZ$120)),\"多摩部\",\"島しょ部\"))))","v":"島しょ部"}]
[null,null,null,null,null,null,null,null,null,"〒",null,null,null,"東京都",null,"（区市町村選択）",null,null,null,null,null,null,null,null,null,null,null,null,null,"棟",null,null,"室",null,null,null,null,null,null,null,null,null,null,null,{"$f":"IF(OR(P40=$AZ$67,P40=$AZ$68,P40=$AZ$69,P40=$AZ$70,P40=$AZ$71,P40=$AZ$72,P40=$AZ$73,P40=$AZ$74,P40=$AZ$75,P40=$AZ$76,P40=$AZ$77,P40=$AZ$78,P40=$AZ$79,P40=$AZ$80,P40=$AZ$81,P40=$AZ$82,P40=$AZ$83,P40=$AZ$84,P40=$AZ$85,P40=$AZ$86,P40=$AZ$87,P40=$AZ$88,P40=$AZ$89,),\"区部\",((IF((OR(P40=$AZ$90,P40=$AZ$91,P40=$AZ$92,P40=$AZ$93,P40=$AZ$94,P40=$AZ$95,P40=$AZ$96,P40=$AZ$97,P40=$AZ$98,P40=$AZ$99,P40=$AZ$100,P40=$AZ$101,P40=$AZ$102,P40=$AZ$103,P40=$AZ$104,P40=$AZ$105,P40=$AZ$106,P40=$AZ$107,P40=$AZ$108,P40=$AZ$109,P40=$AZ$110,P40=$AZ$111,P40=$AZ$112,P40=$AZ$113,P40=$AZ$114,P40=$AZ$115,P40=$AZ$116,P40=$AZ$117,P40=$AZ$118,P40=$AZ$119,P40=$AZ$120)),\"多摩部\",\"島しょ部\"))))","v":"島しょ部"}]
[null,null,null,null,null,null,null,null,null,"〒",null,null,null,"東京都",null,"（区市町村選択）",null,null,null,null,null,null,null,null,null,null,null,null,null,"棟",null,null,"室",null,null,null,null,null,null,null,null,null,null,null,"島しょ部"]
[null,null,null,null,null,null,null,null,null,"〒",null,null,null,"東京都",null,"（区市町村選択）",null,null,null,null,null,null,null,null,null,null,null,null,null,"棟",null,null,"室",null,null,null,null,null,null,null,null,null,null,null,"島しょ部"]
[null,null,null,null,null,null,null,null,null,"〒",null,null,null,"東京都",null,"（区市町村選択）",null,null,null,null,null,null,null,null,null,null,null,null,null,"棟",null,null,"室",null,null,null,null,null,null,null,null,null,null,null,"島しょ部"]
[null,null,null,null,null,null,null,null,null,"〒",null,null,null,"東京都",null,"（区市町村選択）",null,null,null,null,null,null,null,null,null,null,null,null,null,"棟",null,null,"室",null,null,null,null,null,null,null,null,null,null,null,"島しょ部"]
[null,null,null,null,null,null,null,null,null,"〒",null,null,null,"東京都",null,"（区市町村選択）",null,null,null,null,null,null,null,null,null,null,null,null,null,"棟",null,null,"室",null,null,null,null,null,null,null,null,null,null,null,"島しょ部"]
[null,null,null,null,null,null,null,null,null,"〒",null,null,null,"東京都",null,"（区市町村選択）",null,null,null,null,null,null,null,null,null,null,null,null,null,"棟",null,null,"室",null,null,null,null,null,null,null,null,null,null,null,"島しょ部"]
[null,null,null,null,null,null,null,null,null,"〒",null,null,null,"東京都",null,"（区市町村選択）",null,null,null,null,null,null,null,null,null,null,null,null,null,"棟",null,null,"室",null,null,null,null,null,null,null,null,null,null,null,"島しょ部"]
[null,null,null,null,null,null,null,null,null,"〒",null,null,null,"東京都",null,"（区市町村選択）",null,null,null,null,null,null,null,null,null,null,null,null,null,"棟",null,null,"室",null,null,null,null,null,null,null,null,null,null,null,"島しょ部"]
[null,null,null,null,null,null,null,null,null,"〒",null,null,null,"東京都",null,"（区市町村選択）",null,null,null,null,null,null,null,null,null,null,null,null,null,"棟",null,null,"室",null,null,null,null,null,null,null,null,null,null,null,"島しょ部"]
[null,null,null,null,null,null,null,null,null,"〒",null,null,null,"東京都",null,"（区市町村選択）",null,null,null,null,null,null,null,null,null,null,null,null,null,"棟",null,null,"室",null,null,null,null,null,null,null,null,null,null,null,"島しょ部"]
[null,null,null,null,null,null,null,null,null,"〒",null,null,null,"東京都",null,"（区市町村選択）",null,null,null,null,null,null,null,null,null,null,null,null,null,"棟",null,null,"室",null,null,null,null,null,null,null,null,null,null,null,"島しょ部"]
[null,null,null,null,null,null,null,null,null,"〒",null,null,null,"東京都",null,"（区市町村選択）",null,null,null,null,null,null,null,null,null,null,null,null,null,"棟",null,null,"室",null,null,null,null,null,null,null,null,null,null,null,"島しょ部"]
[null,null,null,null,null,null,null,null,null,"〒",null,null,null,"東京都",null,"（区市町村選択）",null,null,null,null,null,null,null,null,null,null,null,null,null,"棟",null,null,"室",null,null,null,null,null,null,null,null,null,null,null,"島しょ部"]
[null,null,null,null,null,null,null,null,null,"〒",null,null,null,"東京都",null,"（区市町村選択）",null,null,null,null,null,null,null,null,null,null,null,null,null,"棟",null,null,"室",null,null,null,null,null,null,null,null,null,null,null,"島しょ部"]
[null,null,null,null,null,null,null,null,null,"〒",null,null,null,"東京都",null,"（区市町村選択）",null,null,null,null,null,null,null,null,null,null,null,null,null,"棟",null,null,"室",null,null,null,null,null,null,null,null,null,null,null,"島しょ部"]
[null,null,null,null,null,null,null,null,null,"〒",null,null,null,"東京都",null,"（区市町村選択）",null,null,null,null,null,null,null,null,null,null,null,null,null,"棟",null,null,"室",null,null,null,null,null,null,null,null,null,null,null,"島しょ部"]
[null,null,null,null,null,null,null,null,null,"〒",null,null,null,"東京都",null,"（区市町村選択）",null,null,null,null,null,null,null,null,null,null,null,null,null,"棟",null,null,"室",null,null,null,null,null,null,null,null,null,null,null,"島しょ部"]
[null,null,null,null,null,null,null,null,null,"〒",null,null,null,"東京都",null,"（区市町村選択）",null,null,null,null,null,null,null,null,null,null,null,null,null,"棟",null,null,"室",null,null,null,null,null,null,null,null,null,null,null,"島しょ部"]
[null,null,null,null,null,null,null,null,null,"〒",null,null,null,"東京都",null,"（区市町村選択）",null,null,null,null,null,null,null,null,null,null,null,null,null,"棟",null,null,"室",null,null,null,null,null,null,null,null,null,null,null,"島しょ部"]
[]
[]
[null,null,"↓",null,null,null,null,null,null,null,null,null,null,null,null,null,null,null,1,2,3,4,5,6,7,8,9,10,1,2,3,4,5,1,2,3]
[null,null,{"$f":"J29","v":0},{"$f":"K30","v":0},{"$f":"O30","v":0},{"$f":"J31","v":0},{"$f":"M32","v":0},{"$f":"AB32","v":0},{"$f":"J33","v":0},{"$f":"K34","v":0},{"$f":"R34","v":"（区市町村選択）"},{"$f":"V34","v":0},{"$f":"AS34","v":"島しょ部"},{"$f":"M35","v":0},{"$f":"W35","v":0},{"$f":"J36","v":0},{"$f":"J37","v":0},null,{"$f":"T6","v":"（選択）"},{"$f":"T7","v":"（選択）"},{"$f":"T9","v":"（選択）"},{"$f":"T11","v":"（選択）"},{"$f":"T12","v":"（選択）"},{"$f":"AP6","v":"（選択）"},{"$f":"AP7","v":"（選択）"},{"$f":"AP8","v":"（選択）"},{"$f":"AP9","v":"（選択）"},{"$f":"AP10","v":"（選択）"},{"$f":"T15","v":"（選択）"},{"$f":"T16","v":"（選択）"},{"$f":"T17","v":"（選択）"},{"$f":"AP15","v":"（選択）"},{"$f":"AP16","v":"（選択）"},{"$f":"T20","v":"（選択）"},{"$f":"T21","v":"（選択）"},{"$f":"AP20","v":"（選択）"}]
[]
[null,null,"↓",null,null,null,null,null,null,"↓"]
[null,null,{"$f":"B39","v":0},{"$f":"K39","v":0},{"$f":"P39","v":"（区市町村選択）"},{"$f":"S39","v":0},{"$f":"AS39","v":"島しょ部"},{"$f":"AB39","v":0},{"$f":"AE39","v":0},{"$f":"AH39","v":0},null,null,null,null,null,null,null,null,null,null,null,null,null,null,null,null,null,null,null,null,null,null,null,null,null,null,null,null,null,null,null,null,null,null,null,null,null,null,null,null,null,"（区市町村選択）",null,null,null,null,null,"（選択）",null,"（選択）",null,"（選択）"]
[null,null,{"$f":"B40","v":0},{"$f":"K40","v":0},{"$f":"P40","v":"（区市町村選択）"},{"$f":"S40","v":0},{"$f":"AS40","v":"島しょ部"},{"$f":"AB40","v":0},{"$f":"AE40","v":0},{"$f":"AH40","v":0},null,null,null,null,null,null,null,null,null,null,null,null,null,null,null,null,null,null,null,null,null,null,null,null,null,null,null,null,null,null,null,null,null,null,null,null,null,null,null,null,null,"千代田区",null,null,null,null,null,"○",null,"有",null,"可"]
[null,null,0,0,"（区市町村選択）",0,"島しょ部",0,0,0,null,null,null,null,null,null,null,null,null,null,null,null,null,null,null,null,null,null,null,null,null,null,null,null,null,null,null,null,null,null,null,null,null,null,null,null,null,null,null,null,null,"中央区",null,null,null,null,null,"×",null,"無",null,"否"]
[null,null,0,0,"（区市町村選択）",0,"島しょ部",0,0,0,null,null,null,null,null,null,null,null,null,null,null,null,null,null,null,null,null,null,null,null,null,null,null,null,null,null,null,null,null,null,null,null,null,null,null,null,null,null,null,null,null,"港区"]
[null,null,0,0,"（区市町村選択）",0,"島しょ部",0,0,0,null,null,null,null,null,null,null,null,null,null,null,null,null,null,null,null,null,null,null,null,null,null,null,null,null,null,null,null,null,null,null,null,null,null,null,null,null,null,null,null,null,"新宿区"]
[null,null,0,0,"（区市町村選択）",0,"島しょ部",0,0,0,null,null,null,null,null,null,null,null,null,null,null,null,null,null,null,null,null,null,null,null,null,null,null,null,null,null,null,null,null,null,null,null,null,null,null,null,null,null,null,null,null,"文京区"]
[null,null,0,0,"（区市町村選択）",0,"島しょ部",0,0,0,null,null,null,null,null,null,null,null,null,null,null,null,null,null,null,null,null,null,null,null,null,null,null,null,null,null,null,null,null,null,null,null,null,null,null,null,null,null,null,null,null,"台東区"]
[null,null,0,0,"（区市町村選択）",0,"島しょ部",0,0,0,null,null,null,null,null,null,null,null,null,null,null,null,null,null,null,null,null,null,null,null,null,null,null,null,null,null,null,null,null,null,null,null,null,null,null,null,null,null,null,null,null,"墨田区"]
[null,null,0,0,"（区市町村選択）",0,"島しょ部",0,0,0,null,null,null,null,null,null,null,null,null,null,null,null,null,null,null,null,null,null,null,null,null,null,null,null,null,null,null,null,null,null,null,null,null,null,null,null,null,null,null,null,null,"江東区"]
[null,null,0,0,"（区市町村選択）",0,"島しょ部",0,0,0,null,null,null,null,null,null,null,null,null,null,null,null,null,null,null,null,null,null,null,null,null,null,null,null,null,null,null,null,null,null,null,null,null,null,null,null,null,null,null,null,null,"品川区"]
[null,null,{"$f":"B49","v":0},{"$f":"K49","v":0},{"$f":"P49","v":"（区市町村選択）"},{"$f":"S49","v":0},"島しょ部",0,0,0,null,null,null,null,null,null,null,null,null,null,null,null,null,null,null,null,null,null,null,null,null,null,null,null,null,null,null,null,null,null,null,null,null,null,null,null,null,null,null,null,null,"目黒区"]
[null,null,0,{"$f":"K50","v":0},{"$f":"P50","v":"（区市町村選択）"},{"$f":"S50","v":0},"島しょ部",0,0,0,null,null,null,null,null,null,null,null,null,null,null,null,null,null,null,null,null,null,null,null,null,null,null,null,null,null,null,null,null,null,null,null,null,null,null,null,null,null,null,null,null,"大田区"]
[null,null,0,0,"（区市町村選択）",0,"島しょ部",0,0,0,null,null,null,null,null,null,null,null,null,null,null,null,null,null,null,null,null,null,null,null,null,null,null,null,null,null,null,null,null,null,null,null,null,null,null,null,null,null,null,null,null,"世田谷区 "]
[null,null,0,0,"（区市町村選択）",0,"島しょ部",0,0,0,null,null,null,null,null,null,null,null,null,null,null,null,null,null,null,null,null,null,null,null,null,null,null,null,null,null,null,null,null,null,null,null,null,null,null,null,null,null,null,null,null,"渋谷区"]
[null,null,0,0,"（区市町村選択）",0,"島しょ部",0,0,0,null,null,null,null,null,null,null,null,null,null,null,null,null,null,null,null,null,null,null,null,null,null,null,null,null,null,null,null,null,null,null,null,null,null,null,null,null,null,null,null,null,"中野区"]
[null,null,0,0,"（区市町村選択）",0,"島しょ部",0,0,0,null,null,null,null,null,null,null,null,null,null,null,null,null,null,null,null,null,null,null,null,null,null,null,null,null,null,null,null,null,null,null,null,null,null,null,null,null,null,null,null,null,"杉並区"]
[null,null,0,0,"（区市町村選択）",0,"島しょ部",0,0,0,null,null,null,null,null,null,null,null,null,null,null,null,null,null,null,null,null,null,null,null,null,null,null,null,null,null,null,null,null,null,null,null,null,null,null,null,null,null,null,null,null,"豊島区"]
[null,null,{"$f":"B56","v":0},{"$f":"K56","v":0},{"$f":"P56","v":"（区市町村選択）"},{"$f":"S56","v":0},"島しょ部",0,0,0,null,null,null,null,null,null,null,null,null,null,null,null,null,null,null,null,null,null,null,null,null,null,null,null,null,null,null,null,null,null,null,null,null,null,null,null,null,null,null,null,null,"北区"]
[null,null,0,{"$f":"K57","v":0},{"$f":"P57","v":"（区市町村選択）"},{"$f":"S57","v":0},"島しょ部",0,0,0,null,null,null,null,null,null,null,null,null,null,null,null,null,null,null,null,null,null,null,null,null,null,null,null,null,null,null,null,null,null,null,null,null,null,null,null,null,null,null,null,null,"荒川区"]
[null,null,0,0,"（区市町村選択）",0,"島しょ部",0,0,0,null,null,null,null,null,null,null,null,null,null,null,null,null,null,null,null,null,null,null,null,null,null,null,null,null,null,null,null,null,null,null,null,null,null,null,null,null,null,null,null,null,"板橋区"]
[null,null,0,0,"（区市町村選択）",0,"島しょ部",0,0,0,null,null,null,null,null,null,null,null,null,null,null,null,null,null,null,null,null,null,null,null,null,null,null,null,null,null,null,null,null,null,null,null,null,null,null,null,null,null,null,null,null,"練馬区"]
[null,null,null,null,null,null,null,null,null,null,null,null,null,null,null,null,null,null,null,null,null,null,null,null,null,null,null,null,null,null,null,null,null,null,null,null,null,null,null,null,null,null,null,null,null,null,null,null,null,null,null,"足立区"]
[null,null,null,null,null,null,null,null,null,null,null,null,null,null,null,null,null,null,null,null,null,null,null,null,null,null,null,null,null,null,null,null,null,null,null,null,null,null,null,null,null,null,null,null,null,null,null,null,null,null,null,"葛飾区"]
[null,null,null,null,null,null,null,null,null,null,null,null,null,null,null,null,null,null,null,null,null,null,null,null,null,null,null,null,null,null,null,null,null,null,null,null,null,null,null,null,null,null,null,null,null,null,null,null,null,null,null,"江戸川区 "]
[null,null,null,null,null,null,null,null,null,null,null,null,null,null,null,null,null,null,null,null,null,null,null,null,null,null,null,null,null,null,null,null,null,null,null,null,null,null,null,null,null,null,null,null,null,null,null,null,null,null,null,"八王子市"]
[null,null,null,null,null,null,null,null,null,null,null,null,null,null,null,null,null,null,null,null,null,null,null,null,null,null,null,null,null,null,null,null,null,null,null,null,null,null,null,null,null,null,null,null,null,null,null,null,null,null,null,"立川市"]
[null,null,null,null,null,null,null,null,null,null,null,null,null,null,null,null,null,null,null,null,null,null,null,null,null,null,null,null,null,null,null,null,null,null,null,null,null,null,null,null,null,null,null,null,null,null,null,null,null,null,null,"武蔵野市"]
[null,null,null,null,null,null,null,null,null,null,null,null,null,null,null,null,null,null,null,null,null,null,null,null,null,null,null,null,null,null,null,null,null,null,null,null,null,null,null,null,null,null,null,null,null,null,null,null,null,null,null,"三鷹市"]
[null,null,null,null,null,null,null,null,null,null,null,null,null,null,null,null,null,null,null,null,null,null,null,null,null,null,null,null,null,null,null,null,null,null,null,null,null,null,null,null,null,null,null,null,null,null,null,null,null,null,null,"青梅市"]
[null,null,null,null,null,null,null,null,null,null,null,null,null,null,null,null,null,null,null,null,null,null,null,null,null,null,null,null,null,null,null,null,null,null,null,null,null,null,null,null,null,null,null,null,null,null,null,null,null,null,null,"府中市"]
[null,null,null,null,null,null,null,null,null,null,null,null,null,null,null,null,null,null,null,null,null,null,null,null,null,null,null,null,null,null,null,null,null,null,null,null,null,null,null,null,null,null,null,null,null,null,null,null,null,null,null,"昭島市"]
[null,null,null,null,null,null,null,null,null,null,null,null,null,null,null,null,null,null,null,null,null,null,null,null,null,null,null,null,null,null,null,null,null,null,null,null,null,null,null,null,null,null,null,null,null,null,null,null,null,null,null,"調布市"]
[null,null,null,null,null,null,null,null,null,null,null,null,null,null,null,null,null,null,null,null,null,null,null,null,null,null,null,null,null,null,null,null,null,null,null,null,null,null,null,null,null,null,null,null,null,null,null,null,null,null,null,"町田市"]
[null,null,null,null,null,null,null,null,null,null,null,null,null,null,null,null,null,null,null,null,null,null,null,null,null,null,null,null,null,null,null,null,null,null,null,null,null,null,null,null,null,null,null,null,null,null,null,null,null,null,null,"小金井市"]
[null,null,null,null,null,null,null,null,null,null,null,null,null,null,null,null,null,null,null,null,null,null,null,null,null,null,null,null,null,null,null,null,null,null,null,null,null,null,null,null,null,null,null,null,null,null,null,null,null,null,null,"小平市"]
[null,null,null,null,null,null,null,null,null,null,null,null,null,null,null,null,null,null,null,null,null,null,null,null,null,null,null,null,null,null,null,null,null,null,null,null,null,null,null,null,null,null,null,null,null,null,null,null,null,null,null,"日野市"]
[null,null,null,null,null,null,null,null,null,null,null,null,null,null,null,null,null,null,null,null,null,null,null,null,null,null,null,null,null,null,null,null,null,null,null,null,null,null,null,null,null,null,null,null,null,null,null,null,null,null,null,"東村山市"]
[null,null,null,null,null,null,null,null,null,null,null,null,null,null,null,null,null,null,null,null,null,null,null,null,null,null,null,null,null,null,null,null,null,null,null,null,null,null,null,null,null,null,null,null,null,null,null,null,null,null,null,"国分寺市"]
[null,null,null,null,null,null,null,null,null,null,null,null,null,null,null,null,null,null,null,null,null,null,null,null,null,null,null,null,null,null,null,null,null,null,null,null,null,null,null,null,null,null,null,null,null,null,null,null,null,null,null,"国立市"]
[null,null,null,null,null,null,null,null,null,null,null,null,null,null,null,null,null,null,null,null,null,null,null,null,null,null,null,null,null,null,null,null,null,null,null,null,null,null,null,null,null,null,null,null,null,null,null,null,null,null,null,"福生市"]
[null,null,null,null,null,null,null,null,null,null,null,null,null,null,null,null,null,null,null,null,null,null,null,null,null,null,null,null,null,null,null,null,null,null,null,null,null,null,null,null,null,null,null,null,null,null,null,null,null,null,null,"狛江市"]
[null,null,null,null,null,null,null,null,null,null,null,null,null,null,null,null,null,null,null,null,null,null,null,null,null,null,null,null,null,null,null,null,null,null,null,null,null,null,null,null,null,null,null,null,null,null,null,null,null,null,null,"東大和市"]
[null,null,null,null,null,null,null,null,null,null,null,null,null,null,null,null,null,null,null,null,null,null,null,null,null,null,null,null,null,null,null,null,null,null,null,null,null,null,null,null,null,null,null,null,null,null,null,null,null,null,null,"清瀬市"]
[null,null,null,null,null,null,null,null,null,null,null,null,null,null,null,null,null,null,null,null,null,null,null,null,null,null,null,null,null,null,null,null,null,null,null,null,null,null,null,null,null,null,null,null,null,null,null,null,null,null,null,"東久留米市"]
[null,null,null,null,null,null,null,null,null,null,null,null,null,null,null,null,null,null,null,null,null,null,null,null,null,null,null,null,null,null,null,null,null,null,null,null,null,null,null,null,null,null,null,null,null,null,null,null,null,null,null,"武蔵村山市"]
[null,null,null,null,null,null,null,null,null,null,null,null,null,null,null,null,null,null,null,null,null,null,null,null,null,null,null,null,null,null,null,null,null,null,null,null,null,null,null,null,null,null,null,null,null,null,null,null,null,null,null,"多摩市"]
[null,null,null,null,null,null,null,null,null,null,null,null,null,null,null,null,null,null,null,null,null,null,null,null,null,null,null,null,null,null,null,null,null,null,null,null,null,null,null,null,null,null,null,null,null,null,null,null,null,null,null,"稲城市"]
[null,null,null,null,null,null,null,null,null,null,null,null,null,null,null,null,null,null,null,null,null,null,null,null,null,null,null,null,null,null,null,null,null,null,null,null,null,null,null,null,null,null,null,null,null,null,null,null,null,null,null,"羽村市"]
[null,null,null,null,null,null,null,null,null,null,null,null,null,null,null,null,null,null,null,null,null,null,null,null,null,null,null,null,null,null,null,null,null,null,null,null,null,null,null,null,null,null,null,null,null,null,null,null,null,null,null,"あきる野市"]
[null,null,null,null,null,null,null,null,null,null,null,null,null,null,null,null,null,null,null,null,null,null,null,null,null,null,null,null,null,null,null,null,null,null,null,null,null,null,null,null,null,null,null,null,null,null,null,null,null,null,null,"西東京市 "]
[null,null,null,null,null,null,null,null,null,null,null,null,null,null,null,null,null,null,null,null,null,null,null,null,null,null,null,null,null,null,null,null,null,null,null,null,null,null,null,null,null,null,null,null,null,null,null,null,null,null,null,"西多摩郡"]
[null,null,null,null,null,null,null,null,null,null,null,null,null,null,null,null,null,null,null,null,null,null,null,null,null,null,null,null,null,null,null,null,null,null,null,null,null,null,null,null,null,null,null,null,null,null,null,null,null,null,null,"瑞穂町"]
[null,null,null,null,null,null,null,null,null,null,null,null,null,null,null,null,null,null,null,null,null,null,null,null,null,null,null,null,null,null,null,null,null,null,null,null,null,null,null,null,null,null,null,null,null,null,null,null,null,null,null,"日の出町"]
[null,null,null,null,null,null,null,null,null,null,null,null,null,null,null,null,null,null,null,null,null,null,null,null,null,null,null,null,null,null,null,null,null,null,null,null,null,null,null,null,null,null,null,null,null,null,null,null,null,null,null,"檜原村"]
[null,null,null,null,null,null,null,null,null,null,null,null,null,null,null,null,null,null,null,null,null,null,null,null,null,null,null,null,null,null,null,null,null,null,null,null,null,null,null,null,null,null,null,null,null,null,null,null,null,null,null,"奥多摩町"]
[null,null,null,null,null,null,null,null,null,null,null,null,null,null,null,null,null,null,null,null,null,null,null,null,null,null,null,null,null,null,null,null,null,null,null,null,null,null,null,null,null,null,null,null,null,null,null,null,null,null,null,"大島町"]
[null,null,null,null,null,null,null,null,null,null,null,null,null,null,null,null,null,null,null,null,null,null,null,null,null,null,null,null,null,null,null,null,null,null,null,null,null,null,null,null,null,null,null,null,null,null,null,null,null,null,null,"利島村"]
[null,null,null,null,null,null,null,null,null,null,null,null,null,null,null,null,null,null,null,null,null,null,null,null,null,null,null,null,null,null,null,null,null,null,null,null,null,null,null,null,null,null,null,null,null,null,null,null,null,null,null,"新島村"]
[null,null,null,null,null,null,null,null,null,null,null,null,null,null,null,null,null,null,null,null,null,null,null,null,null,null,null,null,null,null,null,null,null,null,null,null,null,null,null,null,null,null,null,null,null,null,null,null,null,null,null,"神津島村"]
[null,null,null,null,null,null,null,null,null,null,null,null,null,null,null,null,null,null,null,null,null,null,null,null,null,null,null,null,null,null,null,null,null,null,null,null,null,null,null,null,null,null,null,null,null,null,null,null,null,null,null,"三宅村"]
[null,null,null,null,null,null,null,null,null,null,null,null,null,null,null,null,null,null,null,null,null,null,null,null,null,null,null,null,null,null,null,null,null,null,null,null,null,null,null,null,null,null,null,null,null,null,null,null,null,null,null,"御蔵島村"]
[null,null,null,null,null,null,null,null,null,null,null,null,null,null,null,null,null,null,null,null,null,null,null,null,null,null,null,null,null,null,null,null,null,null,null,null,null,null,null,null,null,null,null,null,null,null,null,null,null,null,null,"八丈町"]
[null,null,null,null,null,null,null,null,null,null,null,null,null,null,null,null,null,null,null,null,null,null,null,null,null,null,null,null,null,null,null,null,null,null,null,null,null,null,null,null,null,null,null,null,null,null,null,null,null,null,null,"青ヶ島村"]
[null,null,null,null,null,null,null,null,null,null,null,null,null,null,null,null,null,null,null,null,null,null,null,null,null,null,null,null,null,null,null,null,null,null,null,null,null,null,null,null,null,null,null,null,null,null,null,null,null,null,null,"小笠原村 "]